[Event "79th ARM-ch 2019"]
[Site "Yerevan"]
[Date "2019.01.12"]
[Round "1"]
[White "Petrosyan, Manuel"]
[Black "Hakobyan, Aram"]
[Result "1/2-1/2"]
[ECO "A28"]
[WhiteElo "2579"]
[BlackElo "2545"]
[Annotator "ChessBase"]
[PlyCount "98"]
[EventDate "2019.01.12"]
[EventType "tourn"]
[EventCountry "ARM"]
[SourceTitle "playchess.com"]
[Source "ChessBase"]
[SourceQuality "1"]
[TimeControl "40/5400+30:1800+30"]

1. c4 {[%emt 0:00:35]} Nf6 2. Nc3 e5 3. Nf3 Nc6 4. e3 Bb4 5. Qc2 O-O 6. Nd5 Re8 7. Qf5 d6 8. Nxf6+ Qxf6 9. Qxf6 gxf6 10. a3 Bc5 11. d3 a5 12. b3 Be6 13. Bb2 d5 14. Rc1 Ba7 15. Be2 Rad8 16. cxd5 Bxd5 17. Bd1 f5 18. Ke2 f6 19. Nd2 Rd7 20. Rg1 Red8 21. Bc2 f4 22. g3 fxg3 23. fxg3 f5 24. Rcf1 Rf7 25. Nf3 Re8 26. Nh4 Be6 27. h3 Kf8 28. Nf3 f4 29. gxf4 exf4 30. e4 Bxh3 31. Rd1 Bxg1 32. Rxg1 h5 33. Kf2 Bg4 34. d4 Rd8 35. d5 Ne7 36. Ng5 c6 37. Nxf7 Kxf7 38. Bc3 b6 39. Bd4 Nxd5 40. exd5 Rxd5 41. Bc3 Rc5 42. Rc1 Rxc3 43. Bg6+ Kxg6 44. Rxc3 Bd7 45. Rd3 Be6 46. Rd6 Kf5 47. Rxc6 Bxb3 48. Rxb6 a4 49. Rh6 Ke5 1/2-1/2

[Event "79th ARM-ch 2019"]
[Site "Yerevan"]
[Date "2019.01.12"]
[Round "1"]
[White "Sargsyan, Shant"]
[Black "Petrosian, Tigran L."]
[Result "0-1"]
[ECO "D37"]
[WhiteElo "2486"]
[BlackElo "2598"]
[Annotator "ChessBase"]
[PlyCount "72"]
[EventDate "2019.01.12"]
[EventType "tourn"]
[EventCountry "ARM"]
[SourceTitle "playchess.com"]
[Source "ChessBase"]
[SourceQuality "1"]
[TimeControl "40/5400+30:1800+30"]

1. d4 {[%emt 0:00:20]} d5 {[%emt 0:00:00]} 2. c4 {[%emt 0:00:19]} e6 {[%emt 0:00:03]} 3. Nf3 {[%emt 0:00:29]} Be7 {[%emt 0:00:07]} 4. Nc3 {[%emt 0:00:43]} Nf6 {[%emt 0:00:14]} 5. Bf4 {[%emt 0:00:23]} O-O {[%emt 0:00:22]} 6. Rc1 {[%emt 0:00:21]} b6 {[%emt 0:02:51]} 7. cxd5 {[%emt 0:02:29]} Nxd5 {[%emt 0:05:02]} 8. Nxd5 {[%emt 0:01:46]} Qxd5 {[%emt 0:00:20]} 9. a3 {[%emt 0:01:45]} Bd6 {[%emt 0:18:40]} 10. Bxd6 {[%emt 0:04:02]} cxd6 {[%emt 0:01:36]} 11. e3 {[%emt 0:02:22]} Nd7 {[%emt 0:11:41]} 12. Qa4 {[%emt 0:13:56]} Qa5+ {[%emt 0:07:36]} 13. Qxa5 {[%emt 0:06:37]} bxa5 {[%emt 0:00:11]} 14. Nd2 {[%emt 0:00:28]} Rb8 {[%emt 0:00:20]} 15. Nc4 {[%emt 0:01:33]} d5 {[%emt 0:01:25]} 16. Nxa5 {[%emt 0:04:14]} Rxb2 {[%emt 0:00:10]} 17. Nc6 {[%emt 0:00:26]} Nb6 {[%emt 0:00:41]} 18. Nxa7 {[%emt 0:21:53]} Bd7 {[%emt 0:00:17]} 19. Rc7 {[%emt 0:08:10]} Rb1+ {[%emt 0:04:53]} 20. Ke2 {[%emt 0:00:40]} Ba4 {[%emt 0:00:20]} 21. Rb7 {[%emt 0:01:47]} Bd1+ {[%emt 0:02:03]} 22. Kd2 {[%emt 0:07:19]} Nc4+ {[%emt 0:00:18]} 23. Bxc4 {[%emt 0:00:09]} Rxb7 {[%emt 0:00:04]} 24. Rxd1 {[%emt 0:02:24]} Rxa7 {[%emt 0:00:12]} 25. Bd3 {[%emt 0:00:27]} Rxa3 {[%emt 0:00:06]} 26. Ke2 {[%emt 0:00:26]} Ra2+ {[%emt 0:00:15]} 27. Kf3 {[%emt 0:00:21]} Rb8 {[%emt 0:00:06]} 28. Bb1 {[%emt 0:00:35]} Rab2 {[%emt 0:00:18]} 29. Bd3 {[%emt 0:00:06]} Ra8 {[%emt 0:00:04]} 30. h4 {[%emt 0:00:44]} Raa2 {[%emt 0:00:33]} 31. Rf1 {[%emt 0:00:07]} h5 {[%emt 0:00:29]} 32. Kg3 {[%emt 0:00:59]} g6 {[%emt 0:00:07]} 33. Kf3 {[%emt 0:00:07]} Kg7 {[%emt 0:00:06]} 34. Kg3 {[%emt 0:00:04]} Kf6 {[%emt 0:01:03]} 35. Kf3 {[%emt 0:02:03]} Rd2 {[%emt 0:00:29]} 36. Bb5 {[%emt 0:00:30]} Ra3 {[%emt 0:00:28]} 0-1

[Event "79th ARM-ch 2019"]
[Site "Yerevan"]
[Date "2019.01.18"]
[Round "7"]
[White "Petrosian, Tigran L."]
[Black "Harutyunian, Tigran K."]
[Result "1-0"]
[ECO "C26"]
[WhiteElo "2598"]
[BlackElo "2542"]
[Annotator "ChessBase"]
[PlyCount "97"]
[EventDate "2019.01.12"]
[EventType "tourn"]
[EventCountry "ARM"]
[SourceTitle "playchess.com"]
[Source "ChessBase"]
[SourceQuality "1"]
[TimeControl "40/5400+30:1800+30"]

1. e4 {[%emt 0:00:22]} e5 {[%emt 0:00:00]} 2. Nc3 {[%emt 0:01:33]} Nf6 {[%emt 0:00:19]} 3. g3 {[%emt 0:00:34]} d5 {[%emt 0:01:50]} 4. exd5 {[%emt 0:00:22]} Nxd5 {[%emt 0:00:14]} 5. Bg2 {[%emt 0:00:21]} Nxc3 {[%emt 0:00:06]} 6. bxc3 {[%emt 0:00:09]} Bc5 {[%emt 0:00:15]} 7. Ne2 {[%emt 0:01:12]} O-O {[%emt 0:01:08]} 8. d4 {[%emt 0:01:25]} Bb6 {[%emt 0:04:21]} 9. O-O {[%emt 0:55:31]} Re8 {[%emt 0:00:35]} 10. a4 {[%emt 0:03:00]} c6 {[%emt 0:04:19]} 11. Qd3 {[%emt 0:09:18]} Bg4 {[%emt 0:01:40]} 12. Be3 {[%emt 0:00:55]} Nd7 {[%emt 0:02:48]} 13. Nc1 {[%emt 0:03:20]} Nf6 {[%emt 0:05:21]} 14. Nb3 {[%emt 0:00:10]} a5 {[%emt 0:11:12]} 15. Rfe1 {[%emt 0:02:00]} Be6 {[%emt 0:08:24]} 16. Rab1 {[%emt 0:03:43]} Bd5 {[%emt 0:01:05]} 17. dxe5 {[%emt 0:07:36]} Rxe5 {[%emt 0:00:33]} 18. c4 {[%emt 0:00:07]} Bxg2 {[%emt 0:02:27]} 19. Qxd8+ {[%emt 0:00:06]} Bxd8 {[%emt 0:00:38]} 20. Kxg2 {[%emt 0:00:05]} b6 {[%emt 0:07:46]} 21. Red1 {[%emt 0:06:08]} h6 {[%emt 0:04:44]} 22. Rd6 {[%emt 0:00:30]} Rc8 {[%emt 0:01:21]} 23. Nd2 {[%emt 0:01:17]} Ne4 {[%emt 0:08:18]} 24. Nxe4 {[%emt 0:01:11]} Rxe4 {[%emt 0:00:01]} 25. Rd4 {[%emt 0:00:22]} Re6 {[%emt 0:00:08]} 26. Kf3 {[%emt 0:00:35]} Bc7 {[%emt 0:01:27]} 27. Rd7 {[%emt 0:00:41]} c5 {[%emt 0:00:17]} 28. Rbd1 {[%emt 0:00:34]} Rf6+ {[%emt 0:01:38]} 29. Ke2 {[%emt 0:00:12]} Re6 {[%emt 0:00:05]} 30. R1d5 {[%emt 0:00:54]} Kf8 {[%emt 0:03:30]} 31. h4 {[%emt 0:00:11]} Ke8 {[%emt 0:00:55]} 32. h5 {[%emt 0:00:24]} Re7 {[%emt 0:00:21]} 33. Rxe7+ {[%emt 0:00:08]} Kxe7 {[%emt 0:00:02]} 34. Kf3 {[%emt 0:00:34]} Rd8 {[%emt 0:01:46]} 35. Ke4 {[%emt 0:01:24]} Rd6 {[%emt 0:02:06]} 36. Rxd6 {[%emt 0:00:06]} Bxd6 {[%emt 0:00:32]} 37. Kf5 {[%emt 0:00:57]} Kd7 {[%emt 0:01:58]} 38. Bd2 {[%emt 0:00:10]} Ke7 {[%emt 0:03:00]} 39. Bc3 {[%emt 0:00:07]} f6 {[%emt 0:00:32]} 40. Kg6 {[%emt 0:00:00]} Kf8 {[%emt 0:00:00]} 41. f4 {[%emt 0:09:56]} Kg8 {[%emt 0:02:23]} 42. Bd2 {[%emt 0:00:10]} Bf8 {[%emt 0:20:51]} 43. g4 {[%emt 0:00:05]} Be7 {[%emt 0:00:18]} 44. Bc3 {[%emt 0:00:06]} Bd6 {[%emt 0:00:05]} 45. g5 {[%emt 0:01:01]} Bxf4 {[%emt 0:01:13]} 46. gxf6 {[%emt 0:00:06]} gxf6 {[%emt 0:00:04]} 47. Bxf6 {[%emt 0:00:08]} Kf8 {[%emt 0:00:32]} 48. Bg7+ {[%emt 0:00:16]} Ke7 {[%emt 0:00:06]} 49. Bxh6 {[%emt 0:00:08]} 1-0